Cogmind - Beta 13 @@@ ROGUE MODE // 2024.04.04 @ 02:30:38 Player: Disor Result: Destroyed by G-34 Mercenary with Small Laser Performance ------------- Evolutions (1) 500 Regions Visited (2) 400 Robots Destroyed (10) 50 Value Destroyed (252) 252 Prototype IDs (0) 0 Alien Tech Used (0) 0 Bonus (0) 0 TOTAL SCORE: 1202 Bonus ------- None Cogmind --------- Core Integrity 0/400 Matter 219/300 Energy 99/100 System Corruption 0% Temperature Cool (12) Movement Core (350) Ox6 Location -9/Materials Parts ------- > --- POWER (2) -------- (None) > --- PROPULSION (2) --- (None) > --- UTILITY (2) ------ Large Storage Unit Structural Scanner > --- WEAPON (3) ------- (None) > --- INVENTORY (15) --- Light Ion Engine Small Storage Unit Peak State ------------ > --- POWER ------------ Improved Ion Engine Light Nuclear Core > --- PROPULSION ------- Light Treads Light Treads > --- UTILITY ---------- Large Storage Unit Structural Scanner > --- WEAPON ----------- Heavy EM Pulse Gun Heavy EM Pulse Gun Beam Rifle > --- INVENTORY -------- Light Ion Engine Small Storage Unit Light Assault Rifle Light Assault Rifle [Rating: 15] Favorites ----------- Power Light Nuclear Core Engine Ion Engine Power Core Light Nuclear Core Propulsion Light Treads Treads Light Treads Utility Structural Scanner Device Structural Scanner Storage Large Storage Unit Weapon Heavy EM Pulse Gun Energy Gun Heavy EM Pulse Gun Ballistic Gun Light Assault Rifle Build | -11 -10 -9 ------- Run | Yrd Mat Mat Slots Evolved 2 | . . 2 Power 1 | . . 1 Propulsion . | . . . Utility . | . . . Weapon 1 | . . 1 Parts Attached 18 | 6 5 7 Power 4 | 1 1 2 Engine 3 | 1 . 2 Core 1 | . 1 . Reactor . | . . . Propulsion 3 | 2 . 1 Treads 3 | 2 . 1 Leg . | . . . Wheel . | . . . Hover . | . . . Flight . | . . . Utility 3 | 1 2 . Device 1 | . 1 . Storage 2 | 1 1 . Processor . | . . . Hackware . | . . . Protection . | . . . Artifact . | . . . Weapon 8 | 2 2 4 Energy Gun 3 | . 2 1 Energy Cannon . | . . . Ballistic Gun 5 | 2 . 3 Ballistic Cannon . | . . . Launcher . | . . . Special Weapon . | . . . Impact Weapon . | . . . Slashing Weapon . | . . . Piercing Weapon . | . . . Special Melee Weapon . | . . . Unidentified Prototypes . | . . . Parts Lost 10 | . . 10 Power 3 | . . 3 Propulsion 2 | . . 2 Utility . | . . . Weapon 5 | . . 5 Highest Loss Streak 9 | . . 9 To Critical Strikes . | . . . Average Slot Usage (%) 93 | . 95 89 Engine 7 | . 5 9 Core 8 | . 8 9 Treads 24 | . 28 18 Device 10 | . 10 11 Storage 12 | . 13 11 Energy Gun 17 | . 11 25 Ballistic Gun 11 | . 16 3 Naked Turns . | . . . Heaviest Build 42 | 12 32 42 Greatest Support 40 | 40 40 40 Greatest Overweight (x) 6 | . . 6 Average Overweight (x) . | . . . Largest Inventory Capacity 15 | 8 15 15 Average Capacity 11 | 6 9 15 Most Carried 6 | 5 6 5 Average Carried 3 | 1 3 3 Final Capacity 15 | 8 15 15 Final Carried 5 | 1 5 2 Class Distribution -------------------- 68% | Mutant 31% | Skirmisher Dominant Class ---------------- Mutant | -10/Materials Skirmisher | -9/Materials Resources | -11 -10 -9 ----------- Run | Yrd Mat Mat Matter Collected 387 | 253 113 21 Remotely . | . . . Salvage Created 309 | . 167 142 Parts 26 | . 17 9 Haulers Intercepted . | . . . Recyclers Shooed 1 | . . 1 Parts Field Recycled . | . . . Retrieved Matter . | . . . Parts Self-Destructed . | . . . Prevented . | . . . Kills | -11 -10 -9 ------- Run | Yrd Mat Mat Combat Hostiles Destroyed 8 | . 6 2 Guns 8 | . 6 2 Classes Destroyed 4 | . 2 2 Watcher 2 | . . 2 Swarmer 4 | . 4 . Grunt 3 | . 2 1 Sentry 1 | . . 1 Best Kill Streak 2 | . 2 2 Combat Bots Only 2 | . 2 1 Max Kills in Single Turn 1 | . 1 1 Gunslinging . | . . . Exploded . | . . . Melee . | . . . Uniques/NPCs Destroyed . | . . . Combat | -11 -10 -9 -------- Run | Yrd Mat Mat Hostile Shots Fired 169 | . 49 120 Missed 40 | . 17 23 Damage Taken 1534 | . 332 1202 Core 463 | . 57 406 Absorbed by Shields . | . . . Regen/Repaired (Parts) 110 | . . 110 Core Remaining (%) 88 | 100 77 . Volleys Fired 59 | . 34 25 Largest 3 | . 2 3 Hottest 146 | . 90 146 Shots Fired 120 | . 68 52 Gun 120 | . 68 52 Cannon . | . . . Launcher . | . . . Special . | . . . Kinetic 81 | . 56 25 Thermal 4 | . . 4 Explosive . | . . . Electromagnetic 35 | . 12 23 Robot Hit Streak 7 | . 7 7 Robot Miss Streak 6 | . 4 6 Penetration Max . | . . . Secondary Targets 2 | . . 2 Max Gunslinging Chain 1 | . . 1 Shots Hit Robots 55 | . 30 25 Core Hits 24 | . 15 9 Critical Kills . | . . . Critical Parts Destroyed . | . . . Critical Strikes 1 | . . 1 Destroy 1 | . . 1 Melee Attacks . | . . . Impact . | . . . Slashing . | . . . Piercing . | . . . Sneak Attacks . | . . . Combat Hostiles . | . . . Follow-up Attacks . | . . . Damage Inflicted 703 | . 284 419 Guns 644 | . 284 360 Cannons . | . . . Explosions 59 | . . 59 Melee . | . . . Ramming . | . . . Kinetic 387 | . 231 156 Thermal 59 | . . 59 Explosive . | . . . Electromagnetic 257 | . 53 204 Impact . | . . . Slashing . | . . . Piercing . | . . . Highest Corruption . | . . . Average Corruption . | . . . Corruption Purged . | . . . Corruption Blocked . | . . . Overload Shots . | . . . Overflow Damage . | . . . Projectiles . | . . . Explosions . | . . . Melee . | . . . Knockbacks . | . . . Impact . | . . . Kinetic . | . . . Secondary . | . . . Self-Inflicted Damage . | . . . Shots . | . . . Rammed . | . . . Targets Rammed . | . . . Kicked . | . . . Crushed . | . . . Highest Temperature 500 | . 128 500 Average Temperature 135 | . 33 188 Received Heat Transfer 699 | . 99 600 Effects 7 | . . 7 Shutdowns 1 | . . 1 Energy Bleed 1 | . . 1 Interference 2 | . . 2 Matter Decay 1 | . . 1 Damage (major) 2 | . . 2 Siege Activations . | . . . Robots Corrupted . | . . . Combat Hostiles . | . . . Parts Fried 1 | . . 1 Impact Corruptions . | . . . Robots Melted . | . . . Combat Hostiles . | . . . Parts Melted . | . . . Heat Transferred 100 | . . 100 Parts Sabotaged . | . . . Parts Stolen . | . . . Parts Stripped . | . . . Power Chain Reactions 1 | . . 1 Alert | -11 -10 -9 ------- Run | Yrd Mat Mat Peak Influence 136 | . 136 82 Initial 26 | . . 26 Average 62 | . 73 55 Maximum Alert Level . | . . . Low Security (%) 100 | 100 100 100 Level 1 . | . . . Level 2 . | . . . Level 3 . | . . . Level 4 . | . . . Level 5 . | . . . High Security . | . . . Max Security . | . . . Squads Dispatched . | . . . Investigation . | . . . Extermination . | . . . Reinforcement . | . . . Assault . | . . . Garrison . | . . . Intercept . | . . . Searches Triggered . | . . . Construction Impeded . | . . . Haulers Reinforced . | . . . Active Scanning Responses . | . . . Cargo Convoy Interrupts . | . . . Stealth | -11 -10 -9 --------- Run | Yrd Mat Mat Distress Signals 2 | . . 2 Communications Jammed . | . . . Distress Signals . | . . . Times Spotted 27 | . 13 14 Peak Tracking Total 7 | . 3 7 Tactical Retreats 1 | . 1 . Traps | -11 -10 -9 ------- Run | Yrd Mat Mat Traps Triggered 1 | . 1 . Indirectly . | . . . Trap Hack Attempts . | . . . Triggered . | . . . Disarmed . | . . . Reprogrammed . | . . . Reused . | . . . Traps Extracted . | . . . Installed . | . . . Triggered . | . . . Machines | -11 -10 -9 ---------- Run | Yrd Mat Mat Machines Disabled 2 | . 2 . Max in Single Turn 2 | . 2 . Machines Repaired . | . . . Machines Dismantled . | . . . Machines Sabotaged . | . . . Overloaded Fab Kills . | . . . Hacking | -11 -10 -9 --------- Run | Yrd Mat Mat Machines Accessed 6 | . 5 1 Terminals 4 | . 4 . Fabricators . | . . . Repair Stations 1 | . . 1 Recycling Units 1 | . 1 . Scanalyzers . | . . . Garrison Access . | . . . Total Hacks 15 | . 12 3 Successful 8 | . 6 2 Failed 7 | . 6 1 Catastrophic 1 | . 1 . Database Lockouts . | . . . Manual . | . . . Terminals 10 | . 10 . Fabricators . | . . . Repair Stations 3 | . . 3 Recycling Units 2 | . 2 . Scanalyzers . | . . . Garrison Access . | . . . Terminal Hacks 5 | . 5 . Record 3 | . 3 . Locate Traps 1 | . 1 . Surveillance Status 1 | . 1 . Fabricator Hacks . | . . . Repair Station Hacks 2 | . . 2 Scan Component 1 | . . 1 Repair 1 | . . 1 Recycling Unit Hacks 1 | . 1 . Report Inventory 1 | . 1 . Scanalyzer . | . . . Garrison Access Hacks . | . . . Unauthorized Hacks . | . . . Terminals . | . . . Fabricators . | . . . Repair Stations . | . . . Recycling Units . | . . . Scanalyzers . | . . . Garrison Access . | . . . Data Cores Recovered . | . . . Used . | . . . Hacking Detections 5 | . 4 1 Full Trace Events 2 | . 1 1 Feedback Events . | . . . Feedback Blocked . | . . . Robot Schematics Acquired . | . . . Robots Built . | . . . Authchips . | . . . Time . | . . . Total Robot Build Rating . | . . . Part Schematics Acquired . | . . . Parts Built . | . . . Authchips . | . . . Time . | . . . Total Part Build Rating . | . . . Parts Repaired 1 | . . 1 Time 26 | . . 26 Parts Recycled . | . . . Recycled Matter . | . . . Retrieved Matter . | . . . Retrieved Components . | . . . Parts Scanalyzed . | . . . Part Schematics Acquired . | . . . Parts Damaged . | . . . Bothacking | -11 -10 -9 ------------ Run | Yrd Mat Mat Used RIF Installer . | . . . Robots Hacked . | . . . Non-combat . | . . . Combat . | . . . Robot Hacks Applied . | . . . Relay Couplers Released . | . . . Fabnet Peak Effective % . | . . . Robots Rewired . | . . . Allies Hacked . | . . . Hacks Repelled . | . . . Allies | -11 -10 -9 -------- Run | Yrd Mat Mat Total Allies . | . . . Largest Group . | . . . Highest-Rated Group . | . . . Highest-Rated Ally . | . . . Total Orders . | . . . Ally Attacks . | . . . Total Damage . | . . . Kills . | . . . Allies Corrupted . | . . . Allies Melted . | . . . Intel | -11 -10 -9 ------- Run | Yrd Mat Mat Robot Analysis Total . | . . . Derelict Logs Recovered . | . . . Drone Launches . | . . . Drone Recoveries . | . . . Exploration | -11 -10 -9 ------------- Run | Yrd Mat Mat Turns Passed 1090 | 70 612 408 Spaces Moved 517 | 46 318 153 Core 16 | 14 . 2 Treads 501 | 32 318 151 Legs . | . . . Wheels . | . . . Hover . | . . . Flight . | . . . Fastest Speed 50 | 50 160 160 Average Speed 174 | 126 160 219 Slowest Speed 350 | 160 160 350 Overloaded Moves . | . . . Propulsion Burnouts . | . . . Robots Hopped . | . . . Cave-ins Triggered . | . . . Exploration Rate (%) 24 | 3 51 19 Regions Visited 2 Branch Regions . Pre-discovered Areas . | . . . Known Exits Taken . | . . . Unknown Exits Taken 2 | 1 1 . Scrap Searched . | . . . Spaces Dug . | . . . Terrain Destroyed 5 | . . 5 Melee . | . . . Projectile . | . . . AOE 5 | . . 5 Terrain Rammed . | . . . Walls Destroyed . | . . . Machines Disabled . | . . . Actions | -11 -10 -9 --------- Run | Yrd Mat Mat Total 613 | 58 366 189 Wait . | . . . Move 515 | 45 317 153 Hop . | . . . Pick Up 17 | 7 7 3 Fast Attach . | . . . Attach 17 | 6 4 7 Detach 3 | . 2 1 Swap 1 | . 1 . Drop 1 | . 1 . Fire 59 | . 34 25 Melee . | . . . Ram . | . . . Kick . | . . . Crush . | . . . Escape Stasis . | . . . Rewire . | . . . Trap . | . . . Miscellaneous . | . . . Route ------- -11/Scrapyard -10/Materials (discovered 3 exits: *Mat x2 / [*Min]) -9/Materials (discovered 1 exit: [*Mat]) History --------- Turn | Location | Event 5 | -11/Scrapyard | Discovered new exit (range 14) 71 | -11/Scrapyard | Entered Materials 187 | -10/Materials | Discovered new exit (range 16) 307 | -10/Materials | Build established: Mutant 361 | -10/Materials | Discovered new exit (range 13) 407 | -10/Materials | Discovered new exit (range 15) 683 | -10/Materials | Entered another Materials area 683 | -9/Materials | Evolved 2 slots: Power x1, Weapon x1 824 | -9/Materials | Discovered new exit (range 13) 903 | -9/Materials | Repaired Lgt. Treads 972 | -9/Materials | Build established: Skirmisher 1071 | -9/Materials | Core integrity fell below 50% 1087 | -9/Materials | Core integrity fell below 20% 1091 | -9/Materials | Destroyed by G-34 Mercenary with Small Laser Last Messages --------------- 01027_ Lgt. Treads destroyed. 01030_ W-16 Scout sends out distress signal. 01031_ C-30 ARC bursts open, deploying its payload. 01031_ G-47 Trooper unfolds itself. 01035_ Lgt. Nuclear Core destroyed. 01037_ Overheating: Energy bleed (-45). 01055_ Beam Rifle destroyed. 01060_ G-34 Mercenary misfires. 01061_ Lgt. Treads destroyed. 01066_ G-34 Mercenary IFF system glitched. 01070_ Imp. Ion Engine destroyed. 01071_ G-47 Trooper destroyed. 01072_ G-34 Mercenary misfires. 01074_ Lgt. Assault Rifle destroyed. 01075_ G-34 Mercenary destroyed. 01076_ R-06 Scavenger collects Heat Sink. 01080_ R-06 Scavenger collects Aluminum Leg. 01087_ Lgt. Assault Rifle destroyed. 01089_ Critical hit (Burn: +37). Map ----- +----------------------------------------------------+ | ?????????????????????????????????????############# | | ?????????????????????????????????????## """ """ # | | ?????????????????????????????????????## """ """ # | | ?????????????????????????????????????## """ """ # | | ????????????????????????????????????? + + | | ?????????????????????????????????????## # | | ?????????????????????????????????????## # | | ????????????????????? ???##########??## # | | ????????????????????? ?############??## ! # | | ????????????????????? ?## ##??########+### | | ????????????????????# ?## """ ##??######## ### | | ???????????????????? ? # """ ##???####### ### | | ???????????????????? ? # """ ##???#######+### | | ????????????????????] ? + ##???## # | | ???????????????????#% ? # """ ####### # | | ???????????????????#"#?## """ ####### # | | ?????????????????? # #?## """ + + # | | ?????????????????? # #?## ####### !!! # | | ?????????????????? # ########+########## !!! + | | ?????????????????? # ######## ## !!! # | | ?????????????????? # ## # ## # | | ?????????????????? # ## # ## # | | ????????????????? # ## # ############ | | ?????????????????### ## *##+################ | | ?????????????????## # =%g ???? | | ?????????????????## # @ # ########?????????? | | ????????"" ###### #%g # %########?????????? | | ????????########### + Y # ### ?????????????? | | ????????## # # # + ?????????????? | | ????????## # # # ### ?????????????? | | ????????## # # # ### ?????????????? | | ????????## # ####### ###??????????????? | | ????????## ! # ###### % ##??????????????? | | ????????## # ##??????????????? | | ????????## + ##??????????????? | | ????????## # %* ##??????????????? | | ??????#### # ##"""" ##??????????????? | | ??????#######+##### ####### ###??????????????? | | ??????## ^ # # ###??????????????? | | ??????## < ^ # ??? + ##???????????????? | | ?####### %! # ??? # ##???????????????? | | ?###########!! ^ # ??? # ##???????????????? | | ?## !# # ??? # ???????????????? | | ?## """ # """ # ??? # ????????????????? | | ?## """ + """ ##???## ??????????????? | | ?## """ # """ ##???####+###??????????????? | | ?## # ##??? ??????????????? | | ?## """ """# ##?????????????????????????? | | ?## """ R"#############?????????????????????????? | | ?## """ """#############?????????????????????????? | +----------------------------------------------------+ Best States ------------- Heat Dissipation 28 Energy Generation 21 Energy Capacity 325 Matter Stores 300 Matter Capacity 300 Sight Range 16 Terrain Scan Density 10 Evasion (%) 50 Recoil Reduction 2 Item Schematics ----------------- None Robot Schematics ------------------ None Fabricated ------------ Nothing Alien Tech Used ----------------- None Achievements -------------- None Challenges ------------ None Game ------ Seed OmegaScrapField Manual? 0 Play Time 00:21:23 Cumulative 2.2 hours Start 2024.04.04 @ 02:12:06 End 2024.04.04 @ 02:30:38 Sessions 1 Manual Loads 0 Difficulty Rogue Special Mode None Game No. 10 Rogue 9 Adventurer 0 Explorer 1 Win Type - Total 0 Types 0/0/0/0/0/0/0/0/0 Lore% 1 Gallery% 6 Achievement% 2 Wizard Run 0 Options --------- Layout 1 ASCII 0 Keyboard 0 Movement Mouse Keybinds 0 Fullscreen 2 Font 32/SmallcapsGlow Map View 50x35 Zoom Use 0% Tactical HUD 1 Map Filters NONE Filters NONE Steam 1 RUN: 69c48cef-a361-4d56-b5bd-800901d25e5c